Cogmind - Beta 16 @@@ ROGUE MODE // 2025.11.16 @ 05:03:23 // Winter2019/RPGLIKE Player: Toaster Result: Self-destructed Performance ------------- Evolutions (9) 4500 Regions Visited (22) 4400 Robots Destroyed (314) 1570 Value Destroyed (14249) 14249 Prototype IDs (53) 1060 Alien Tech Used (1) 200 Bonus (6762) 6762 TOTAL SCORE: 32741 Bonus ------- High Alert Combat Kills 98 Follower Combat Kills 778 Aligned with FarCom 300 Met Zhirov 300 Met Warlord at Base 500 MAIN.C Attacked Warlord 500 Warlord Defense Kills 2286 Met Warlord at Research 2000 Cogmind --------- Core Integrity 541/2400 Matter 300/300 Energy 800/800 System Corruption 3% Temperature Cool (0) Movement Rolling (130) Ox2 Location -1/Access Parts ------- > --- POWER (3) -------- Cooled Deuterium Engine Heavy Antimatter Reactor Quantum Reactor > --- PROPULSION (4) --- Armored Huge Wheel (fused) Armored Huge Wheel (fused) > --- UTILITY (9) ------ Advanced Actuator Array Advanced Actuator Array Advanced Transmission Jammer Improved Medium Armor Plating Improved Medium Armor Plating Improved Powered Armor Improved Powered Armor > --- WEAPON (8) ------- Maul Maul Heavy Mace Heavy Flail Great Maul Powered Hammer Impact Mace Phasing Sabre > --- INVENTORY (1) ---- Gamma Bomb Array Peak State ------------ > --- POWER ------------ Cooled Deuterium Engine Heavy Antimatter Reactor Quantum Reactor > --- PROPULSION ------- Armored Huge Wheel Armored Huge Wheel > --- UTILITY ---------- Advanced Actuator Array Advanced Actuator Array Advanced Transmission Jammer Improved Heavy Armor Plating Layered Heavy Armor Plating Improved Powered Armor Experimental Hacking Suite > --- WEAPON ----------- Maul Maul Heavy Mace Heavy Flail Great Maul Powered Hammer Impact Mace Phasing Sabre > --- INVENTORY -------- Force Field [Rating: 123] Favorites ----------- Power Cooled Deuterium Engine Engine Cooled Deuterium Engine Power Core Enhanced Nuclear Core Reactor Heavy Antimatter Reactor Propulsion Armored Huge Wheel Leg Aluminum Leg Wheel Armored Huge Wheel Hover Unit Cooled Gravmag System Utility Improved Medium Armor Plating Device Advanced Actuator Array Processor Corruption Screen Hackware Experimental Hacking Suite Protection Improved Medium Armor Plating Weapon Maul Impact Weapon Maul Slashing Weapon Phasing Sabre Build | -11 -10 -10 -10 -9 -8 -7 -7 -7 -7 -5 -5 -5 -5 -4 -4 -4 -4 -4 -3 -3 -2 -1 ------- Run | Yrd Mat Min Exi Min Mat Fac Sto Rec Scr Fac Upp Upp Zhi Pro Fac Upp Upp War Pro Res Res Acc Slots Evolved 20 | 2 3 . 1 . 2 4 2 1 . 1 . 1 . 1 1 . . . 1 . . . Power 2 | . 1 . . . . . . . . . . 1 . . . . . . . . . . Propulsion 3 | 1 . . . . 1 1 . . . . . . . . . . . . . . . . Utility 8 | . 1 . . . 1 2 1 . . 1 . . . . 1 . . . 1 . . . Weapon 7 | 1 1 . 1 . . 1 1 1 . . . . . 1 . . . . . . . . Parts Attached 71 | 3 14 1 1 . 9 9 6 1 . 8 1 1 2 1 5 1 1 . 2 . 3 2 Power 12 | 1 3 . . . 2 . 2 . . . . 1 1 . 1 . . . . . 1 . Engine 7 | 1 3 . . . 2 . 1 . . . . . . . . . . . . . . . Core 3 | . . . . . . . 1 . . . . 1 . . 1 . . . . . . . Reactor 2 | . . . . . . . . . . . . . 1 . . . . . . . 1 . Propulsion 13 | 2 4 . . . 2 2 2 . . . . . 1 . . . . . . . . . Treads . | . . . . . . . . . . . . . . . . . . . . . . . Leg 10 | 2 4 . . . 2 . 2 . . . . . . . . . . . . . . . Wheel 2 | . . . . . . 2 . . . . . . . . . . . . . . . . Hover 1 | . . . . . . . . . . . . . 1 . . . . . . . . . Flight . | . . . . . . . . . . . . . . . . . . . . . . . Utility 32 | . 3 1 . . 3 4 1 . . 8 1 . . . 4 . 1 . 2 . 2 2 Device 16 | . 2 1 . . . 3 . . . 5 . . . . 4 . 1 . . . . . Storage . | . . . . . . . . . . . . . . . . . . . . . . . Processor 4 | . 1 . . . . 1 . . . 2 . . . . . . . . . . . . Hackware 1 | . . . . . . . . . . . . . . . . . . . 1 . . . Protection 11 | . . . . . 3 . 1 . . 1 1 . . . . . . . 1 . 2 2 Artifact . | . . . . . . . . . . . . . . . . . . . . . . . Weapon 14 | . 4 . 1 . 2 3 1 1 . . . . . 1 . 1 . . . . . . Energy Gun . | . . . . . . . . . . . . . . . . . . . . . . . Energy Cannon . | . . . . . . . . . . . . . . . . . . . . . . . Ballistic Gun . | . . . . . . . . . . . . . . . . . . . . . . . Ballistic Cannon . | . . . . . . . . . . . . . . . . . . . . . . . Launcher . | . . . . . . . . . . . . . . . . . . . . . . . Special Weapon . | . . . . . . . . . . . . . . . . . . . . . . . Impact Weapon 11 | . 3 . . . 2 3 1 1 . . . . . . . 1 . . . . . . Slashing Weapon 3 | . 1 . 1 . . . . . . . . . . 1 . . . . . . . . Piercing Weapon . | . . . . . . . . . . . . . . . . . . . . . . . Special Melee Weapon . | . . . . . . . . . . . . . . . . . . . . . . . Unidentified Prototypes 9 | . . 1 . . 1 . 2 . . 1 . . 3 . . . . . 1 . . . Parts Lost 4 | . . . . . . . . . . . . . . . 1 . . 1 . . 2 . Power 1 | . . . . . . . . . . . . . . . 1 . . . . . . . Propulsion . | . . . . . . . . . . . . . . . . . . . . . . . Utility 3 | . . . . . . . . . . . . . . . . . . 1 . . 2 . Weapon . | . . . . . . . . . . . . . . . . . . . . . . . Highest Loss Streak 1 | . . . . . . . . . . . . . . . 1 . . 1 . . 1 . To Critical Strikes . | . . . . . . . . . . . . . . . . . . . . . . . Average Backups . | . . . . . . . 1 1 1 . . . . . . 1 . 1 . . . 1 Power . | . . . . . . . . . . . . . . . . . . . . . . . Propulsion . | . . . . . . . . . . . . . . . . . . . . . . . Utility . | . . . . . . . . . . . . . . . . 1 . 1 . . . . Weapon . | . . . . . . . 1 1 1 . . . . . . . . . . . . 1 Tool/Special . | . . . . . . . . . . . . . . . . . . . . . . . Unused Backups 3 | . . . . . 1 . . . . . . 1 . . . . . . . . . 1 Power . | . . . . . . . . . . . . . . . . . . . . . . . Propulsion . | . . . . . . . . . . . . . . . . . . . . . . . Utility 2 | . . . . . 1 . . . . . . 1 . . . . . . . . . . Weapon 1 | . . . . . . . . . . . . . . . . . . . . . . 1 Tool/Special . | . . . . . . . . . . . . . . . . . . . . . . . Average Slot Usage (%) 86 | . 83 100 97 90 96 85 81 83 84 83 83 84 84 85 85 85 86 85 84 83 82 81 Engine 8 | . 19 22 21 20 17 14 6 5 5 5 5 4 4 4 4 4 4 3 4 4 4 4 Core 2 | . . . . . . . 4 5 5 5 5 8 7 4 3 4 4 4 4 4 . . Reactor 1 | . . . . . . . . . . . . . 1 4 4 4 4 4 4 4 7 8 Leg 6 | . 28 22 21 20 26 13 . . . . . . . . . . . . . . . . Wheel 6 | . . . . . . 5 11 10 10 10 10 9 8 9 8 8 8 8 8 8 8 8 Device 13 | . 13 11 10 10 8 7 17 15 15 13 15 14 14 13 15 17 17 17 16 16 13 12 Processor 1 | . 2 11 8 . . 6 . . . 4 3 . . . . . . . . . . . Protection 8 | . . . . . 8 6 6 10 10 10 10 13 14 13 12 13 13 12 8 8 12 14 Impact Weapon 29 | . 11 33 32 30 26 22 32 34 36 35 35 33 33 32 30 29 30 30 29 29 29 29 Slashing Weapon 3 | . 8 . 1 10 8 6 . . . . . . . . 4 4 4 4 4 4 4 4 Peak Build Rating 123 | 3 10 17 17 17 36 56 67 71 71 83 83 87 90 96 105 105 109 109 119 119 123 107 Average Rating 69 | 2 7 10 11 17 24 46 60 68 71 78 80 86 87 90 100 104 105 108 114 119 119 105 On Entrance 67 | . 3 10 10 17 17 36 54 67 71 71 83 77 87 90 96 104 105 109 105 119 119 99 Avg Prop Armor Cover (%) 6 | . . . . . . . 6 . . . . . . . . . . . . . . . Naked Turns . | . . . . . . . . . . . . . . . . . . . . . . . Heaviest Build 149 | 3 18 18 21 21 51 60 72 75 75 81 81 102 112 116 123 114 116 116 117 117 149 128 Greatest Support 61 | 20 20 20 25 25 42 61 61 61 61 61 61 61 61 61 61 61 61 61 61 61 61 61 Greatest Overweight (x) 6 | . . . . . 1 6 1 1 1 1 1 1 3 1 2 1 1 1 1 1 2 2 Average Overweight (x) . | . . . . . . . . 1 1 . 1 1 1 1 1 1 1 1 1 1 1 1 Largest Inventory Capacity 1 | 1 1 1 1 1 1 1 1 1 1 1 1 1 1 1 1 1 1 1 1 1 1 1 Average Capacity 1 | 1 1 1 1 1 1 1 1 1 1 1 1 1 1 1 1 1 1 1 1 1 1 1 Most Carried 1 | . 1 1 1 1 1 1 1 1 1 1 1 1 1 1 1 1 1 1 1 . 1 1 Average Carried . | . . . . . . . 1 1 1 . . . . . . 1 . 1 . . . 1 Final Capacity 1 | 1 1 1 1 1 1 1 1 1 1 1 1 1 1 1 1 1 1 1 1 1 1 1 Final Carried 1 | . . 1 . 1 1 1 1 1 1 . 1 . . . 1 1 1 1 . . 1 1 Class Distribution -------------------- 78% | Hacker-Gladiator 15% | Scavenger-Gladiator 3% | Mutant Dominant Class ---------------- Mutant | -10/Materials Scavenger-Gladiator | -10/Mines Scavenger-Gladiator | -10/Exiles Scavenger-Gladiator | -9/Mines Hacker-Gladiator | -8/Materials Hacker-Gladiator | -7/Factory Hacker-Gladiator | -7/Storage Hacker-Gladiator | -7/Recycling Hacker-Gladiator | -7/Scraptown Hacker-Gladiator | -5/Factory Hacker-Gladiator | -5/Upper Caves Hacker-Gladiator | -5/Upper Caves Hacker-Gladiator | -5/Zhirov Hacker-Gladiator | -4/Proximity Caves Hacker-Gladiator | -4/Factory Hacker-Gladiator | -4/Upper Caves Hacker-Gladiator | -4/Upper Caves Hacker-Gladiator | -4/Warlord Hacker-Gladiator | -3/Proximity Caves Hacker-Gladiator | -3/Research Hacker-Gladiator | -2/Research Hacker-Gladiator | -1/Access Resources | -11 -10 -10 -10 -9 -8 -7 -7 -7 -7 -5 -5 -5 -5 -4 -4 -4 -4 -4 -3 -3 -2 -1 ----------- Run | Yrd Mat Min Exi Min Mat Fac Sto Rec Scr Fac Upp Upp Zhi Pro Fac Upp Upp War Pro Res Res Acc Matter Collected 1596 | 230 140 20 . 10 97 80 80 10 . 158 79 130 . 118 67 94 106 42 58 15 37 25 Remotely . | . . . . . . . . . . . . . . . . . . . . . . . Salvage Created 13460 | . 788 385 . 180 927 1067 839 465 . 1617 397 861 . 922 610 429 680 999 854 883 444 113 Parts 392 | . 45 16 . 6 59 28 14 10 . 37 11 11 . 16 37 14 17 17 10 33 11 . Haulers Intercepted 7 | . 1 . . . . . 4 . . 2 . . . . . . . . . . . . Recyclers Shooed . | . . . . . . . . . . . . . . . . . . . . . . . Parts Field Recycled . | . . . . . . . . . . . . . . . . . . . . . . . Retrieved Matter . | . . . . . . . . . . . . . . . . . . . . . . . Parts Self-Destructed 68 | . . . . . . . . . . . 8 14 . 9 . 11 19 . 7 . . . Prevented 38 | . . . . . . . . . . . 7 4 . 6 . 8 9 . 4 . . . Parts Restored . | . . . . . . . . . . . . . . . . . . . . . . . Kills | -11 -10 -10 -10 -9 -8 -7 -7 -7 -7 -5 -5 -5 -5 -4 -4 -4 -4 -4 -3 -3 -2 -1 ------- Run | Yrd Mat Min Exi Min Mat Fac Sto Rec Scr Fac Upp Upp Zhi Pro Fac Upp Upp War Pro Res Res Acc Combat Hostiles Destroyed 256 | . 15 12 . 2 25 19 8 6 . 22 16 15 . 16 10 16 16 16 14 18 10 . Melee 151 | . 15 9 . 2 24 10 2 4 . 11 8 6 . 8 8 8 7 6 8 13 2 . Cannons 1 | . . . . . . . . . . . 1 . . . . . . . . . . . AOE 1 | . . . . . . . . . . . . 1 . . . . . . . . . . Classes Destroyed 24 | . 7 . . 1 3 1 1 1 . 1 4 2 . . . . . 2 1 . . . Worker 8 | . 2 . . . 1 1 3 . . 1 . . . . . . . . . . . . Builder 2 | . 1 . . . . 1 . . . . . . . . . . . . . . . . Tunneler 3 | . . . . . . . . . . 2 . . . . . . . . . 1 . . Hauler 7 | . 1 . . . . . 4 . . 2 . . . . . . . . . . . . Recycler 9 | . 1 1 . 2 . . 1 . . 2 . . . . . . . . . 1 . 1 Minesweeper 2 | . . . . . . . . . . . . 1 . . . 1 . . . . . . Mechanic 2 | . . . . . . . 1 . . 1 . . . . . . . . . . . . Operator 4 | . . . . . 2 . 2 . . . . . . . . . . . . . . . Drone 2 | . . . . . . . . . . . . . . . . . . . 2 . . . Watcher 22 | . 3 . . . 3 6 1 . . 7 . . . . 2 . . . . . . . Swarmer 62 | . 6 6 . 1 6 4 1 . . . 6 1 . 6 . 6 7 . 2 10 . . Grunt 83 | . 9 6 . . 14 8 1 . . 8 3 1 . 4 1 8 3 7 5 2 3 . Brawler 11 | . . . . . . . . . . . 1 3 . . . . 1 4 2 . . . Duelist 8 | . . . . . . . . . . . 2 1 . . . . 1 1 2 . 1 . Protector 1 | . . . . . . . . . . . . . . . . . . 1 . . . . Sentry 29 | . . . . . 4 1 5 3 . 2 1 1 . 1 3 2 1 . 1 2 2 . Hunter 10 | . . . . . . . . 1 . 2 . 1 . 4 . . 2 . . . . . Programmer 33 | . . . . . . 6 1 2 . 10 2 . . . 6 . . 1 . 4 1 . Heavy 1 | . . . . . 1 . . . . . . . . . . . . . . . . . Behemoth 3 | . . . . . . . . . . . 1 . . 1 . . . 1 . . . . Executioner 4 | . . . . . . . . . . . . . . . . . . 1 . . 3 . Samaritan 1 | . . . . . . . . . . . 1 . . . . . . . . . . . Assembled 1 | . . . . 1 . . . . . . . . . . . . . . . . . . Thug 6 | . . . . . . . . . . . . 5 . . . . 1 . . . . . Savage 1 | . . . . . . . . . . . . 1 . . . . . . . . . . Mutant 1 | . . . . . . . . . . . . 1 . . . . . . . . . . Best Kill Streak 8 | . 7 5 . 2 5 4 4 3 . 5 5 6 . 5 1 7 5 7 7 8 5 1 Combat Bots Only 7 | . 5 5 . 1 4 4 1 3 . 5 5 6 . 5 1 7 5 7 7 7 5 . Max Kills in Single Turn 2 | . 1 1 . 1 1 1 1 1 . 1 2 1 . 1 1 1 2 1 1 1 1 1 Gunslinging . | . . . . . . . . . . . . . . . . . . . . . . . Exploded 1 | . . . . . . . . . . . . 1 . . . . . . . . . . Melee 2 | . 1 1 . 1 1 1 1 1 . 1 2 1 . 1 1 1 2 1 1 1 1 . Uniques/NPCs Destroyed . | . . . . . . . . . . . . . . . . . . . . . . . Combat | -11 -10 -10 -10 -9 -8 -7 -7 -7 -7 -5 -5 -5 -5 -4 -4 -4 -4 -4 -3 -3 -2 -1 -------- Run | Yrd Mat Min Exi Min Mat Fac Sto Rec Scr Fac Upp Upp Zhi Pro Fac Upp Upp War Pro Res Res Acc Hostile Shots Fired 1882 | . 91 92 . 10 103 159 85 70 . 159 102 55 . 148 77 72 81 194 82 119 148 35 Missed 522 | . 24 28 . 2 24 52 25 26 . 43 19 13 . 49 26 14 23 53 17 28 46 10 Hits 1360 | . 67 64 . 8 79 107 60 44 . 116 83 42 . 99 51 58 58 141 65 91 102 25 Melee 33 | . . . . . . . . . . . . 3 . . . . 7 10 12 . 1 . Projectile 1327 | . 67 64 . 8 79 107 60 44 . 116 83 39 . 99 51 58 51 131 53 91 101 25 AOE 3 | . . . . . . 1 . . . . . . . . . . . . . . 1 1 Critical Strikes 57 | . 1 . . . 3 3 1 . . 6 . 6 . 7 3 1 2 9 4 1 8 2 Part Disruptions 1 | . . . . . . . . . . . . 1 . . . . . . . . . . Damage Taken 15349 | . 598 478 . 41 961 986 472 290 . 1518 770 421 . 847 474 437 559 1534 728 1075 2510 650 Core 9164 | . 488 384 . 29 651 593 273 155 . 897 463 250 . 490 246 218 320 821 448 553 1550 335 Absorbed by Shields 7684 | . 194 187 . 19 357 381 202 121 . 609 489 373 . 881 493 463 475 1121 681 638 . . Redirected to Core 7906 | . 330 264 . 26 514 510 219 124 . 794 377 234 . 480 231 212 245 756 430 511 1314 335 Ignored by Resistances 4548 | . . . . 10 259 169 119 67 . 168 283 189 . 484 272 262 213 639 253 366 653 142 Regen/Repaired (Parts) 122 | . . . . . . . . . . . . . . . 122 . . . . . . . Core Remaining (%) 66 | 100 . . . 64 74 . . . 100 . . . . 62 . . . . 60 37 36 . Volleys Fired . | . . . . . . . . . . . . . . . . . . . . . . . Largest . | . . . . . . . . . . . . . . . . . . . . . . . Hottest . | . . . . . . . . . . . . . . . . . . . . . . . Shots Fired . | . . . . . . . . . . . . . . . . . . . . . . . Gun . | . . . . . . . . . . . . . . . . . . . . . . . Cannon . | . . . . . . . . . . . . . . . . . . . . . . . Launcher . | . . . . . . . . . . . . . . . . . . . . . . . Special . | . . . . . . . . . . . . . . . . . . . . . . . Kinetic . | . . . . . . . . . . . . . . . . . . . . . . . Thermal . | . . . . . . . . . . . . . . . . . . . . . . . Explosive . | . . . . . . . . . . . . . . . . . . . . . . . Electromagnetic . | . . . . . . . . . . . . . . . . . . . . . . . Robot Hit Streak . | . . . . . . . . . . . . . . . . . . . . . . . Robot Miss Streak . | . . . . . . . . . . . . . . . . . . . . . . . Penetration Max . | . . . . . . . . . . . . . . . . . . . . . . . Secondary Targets . | . . . . . . . . . . . . . . . . . . . . . . . Shots Hit Robots 1001 | . 45 35 . 4 65 52 48 23 . 106 62 50 . 66 61 50 60 71 68 70 64 1 Core Hits 204 | . 23 9 . 4 28 10 6 4 . 15 10 7 . 10 14 10 9 12 12 16 5 . Critical Kills 22 | . . 2 . . . 1 2 2 . 1 1 2 . 1 1 2 2 1 2 2 . . Critical Parts Destroyed 181 | . 1 5 . . . 18 13 6 . 32 11 13 . 12 7 10 8 10 9 11 14 1 Critical Strikes 241 | . 1 7 . . 6 20 15 9 . 33 14 15 . 16 12 13 12 15 18 15 19 1 Smash 222 | . 1 7 . . . 19 15 9 . 33 14 15 . 15 11 12 11 14 16 14 15 1 Sever 19 | . . . . . 6 1 . . . . . . . 1 1 1 1 1 2 1 4 . Melee Attacks 1250 | . 53 49 . 5 79 72 71 25 . 138 76 60 . 82 72 66 68 80 86 89 77 2 Impact 1042 | . 4 49 . 1 30 63 71 25 . 138 76 60 . 78 51 54 62 72 70 75 61 2 Slashing 208 | . 49 . . 4 49 9 . . . . . . . 4 21 12 6 8 16 14 16 . Piercing . | . . . . . . . . . . . . . . . . . . . . . . . Sneak Attacks 76 | . 8 2 . 2 3 4 12 4 . 11 14 5 . . . 1 1 5 1 2 . 1 Combat Hostiles 6 | . . . . . . . . . . . . 3 . . . . . 2 1 . . . Follow-up Attacks 483 | . . 10 . . 11 11 18 10 . 47 35 27 . 38 36 28 42 48 39 41 42 . Damage Inflicted 44135 | . 1274 920 . 279 2754 2568 2389 1124 . 5241 3145 2252 . 3153 2329 2292 2513 3079 2827 3157 2700 139 Guns . | . . . . . . . . . . . . . . . . . . . . . . . Cannons . | . . . . . . . . . . . . . . . . . . . . . . . Explosions . | . . . . . . . . . . . . . . . . . . . . . . . Melee 44135 | . 1274 920 . 279 2754 2568 2389 1124 . 5241 3145 2252 . 3153 2329 2292 2513 3079 2827 3157 2700 139 Ramming . | . . . . . . . . . . . . . . . . . . . . . . . Kinetic . | . . . . . . . . . . . . . . . . . . . . . . . Thermal . | . . . . . . . . . . . . . . . . . . . . . . . Explosive . | . . . . . . . . . . . . . . . . . . . . . . . Electromagnetic . | . . . . . . . . . . . . . . . . . . . . . . . Impact 36775 | . 97 920 . . 511 2320 2389 1124 . 5241 3145 2252 . 2997 1630 1958 2311 2788 2354 2622 1977 139 Slashing 7360 | . 1177 . . 279 2243 248 . . . . . . . 156 699 334 202 291 473 535 723 . Piercing . | . . . . . . . . . . . . . . . . . . . . . . . Highest Corruption 8 | . . . . . 1 . 1 2 . 6 6 6 6 6 8 8 8 8 2 4 . 3 Average Corruption 5 | . . . . . 1 . 1 1 . 5 6 6 6 6 4 8 8 2 2 3 . 2 Corruption Purged 8 | . . . . . . . 1 2 . 5 . . . . . . . . . . . . Corruption Blocked 22 | . . . . . . 7 . . . 12 3 . . . . . . . . . . . Effects 261 | . . . . . 4 . . . . 32 42 31 2 30 20 23 50 1 14 7 . 5 Message Errors 63 | . . . . . . . . . . 10 8 11 1 7 5 6 11 . 1 3 . . Matter Fused 68 | . . . . . 1 . . . . 8 13 9 . 5 5 5 13 . 5 3 . 1 Heat Flow Errors 38 | . . . . . 1 . . . . 4 4 3 . 9 4 2 8 . 2 . . 1 Energy Discharges 37 | . . . . . . . . . . 4 5 4 1 2 4 3 6 1 4 1 . 2 Parts Rejected 2 | . . . . . . . . . . 1 . 1 . . . . . . . . . . Parts Fused 3 | . . . . . 1 . . . . 1 . . . . . . 1 . . . . . Data Loss (minor) 29 | . . . . . 1 . . . . 4 6 1 . 4 2 3 6 . 1 . . 1 Data Loss (major) 15 | . . . . . . . . . . . 5 1 . 2 . 1 5 . 1 . . . Alerts 6 | . . . . . . . . . . . 1 1 . 1 . 3 . . . . . . Overload Shots . | . . . . . . . . . . . . . . . . . . . . . . . Overflow Damage 12271 | . 86 194 . . 180 1206 1034 404 . 2176 821 804 . 795 404 665 583 645 498 945 692 139 Projectiles 4 | . . . . . . . . . . . . . . . 4 . . . . . . . Explosions . | . . . . . . . . . . . . . . . . . . . . . . . Melee 12267 | . 86 194 . . 180 1206 1034 404 . 2176 821 804 . 795 400 665 583 645 498 945 692 139 Knockbacks 122 | . . 3 . . 1 13 3 2 . 18 8 5 . 6 4 7 6 10 12 7 16 1 Impact 118 | . . 3 . . 1 13 3 2 . 18 7 5 . 6 3 7 6 10 11 7 15 1 Kinetic . | . . . . . . . . . . . . . . . . . . . . . . . Secondary 4 | . . . . . . . . . . . 1 . . . 1 . . . 1 . 1 . Self-Inflicted Damage . | . . . . . . . . . . . . . . . . . . . . . . . Shots . | . . . . . . . . . . . . . . . . . . . . . . . Rammed . | . . . . . . . . . . . . . . . . . . . . . . . Targets Rammed . | . . . . . . . . . . . . . . . . . . . . . . . Kicked . | . . . . . . . . . . . . . . . . . . . . . . . Crushed . | . . . . . . . . . . . . . . . . . . . . . . . Highest Temperature 285 | . . . . . 85 . . . . 157 268 285 . 259 232 251 275 52 198 1 78 196 Average Temperature 84 | . . . . . 4 . . . . 75 116 103 . 102 100 109 103 15 65 1 22 101 Received Heat Transfer 2800 | . 253 152 . 4 288 210 166 88 . 235 112 180 . 204 54 91 42 340 135 30 216 . Effects 9 | . . . . . . . . . . . 2 . . 2 . . 5 . . . . . Energy Bleed 2 | . . . . . . . . . . . . . . 1 . . 1 . . . . . Interference 7 | . . . . . . . . . . . 2 . . 1 . . 4 . . . . . Siege Activations . | . . . . . . . . . . . . . . . . . . . . . . . Martial Activations . | . . . . . . . . . . . . . . . . . . . . . . . Shielding Activations . | . . . . . . . . . . . . . . . . . . . . . . . Robots Disrupted . | . . . . . . . . . . . . . . . . . . . . . . . Combat Hostiles . | . . . . . . . . . . . . . . . . . . . . . . . Robots Corrupted 122 | . 1 3 . . 2 10 10 3 . 18 8 8 . 8 2 8 10 10 6 6 8 1 Combat Hostiles 104 | . . 3 . . 1 9 6 3 . 11 6 8 . 8 2 8 10 10 6 5 8 . Parts Fried 153 | . . 7 . . 1 15 16 7 . 30 7 12 . 6 2 12 3 7 8 12 8 . Impact Corruptions 413 | . 1 8 . . 4 42 31 14 . 74 33 24 . 27 17 22 25 20 17 30 21 3 Robots Melted . | . . . . . . . . . . . . . . . . . . . . . . . Combat Hostiles . | . . . . . . . . . . . . . . . . . . . . . . . Parts Melted 1 | . . . . . . 1 . . . . . . . . . . . . . . . . Heat Transferred . | . . . . . . . . . . . . . . . . . . . . . . . Parts Sabotaged 1 | . . . . . . . . . . . . . . . . . . 1 . . . . Parts Stolen . | . . . . . . . . . . . . . . . . . . . . . . . Parts Stripped . | . . . . . . . . . . . . . . . . . . . . . . . Power Chain Reactions . | . . . . . . . . . . . . . . . . . . . . . . . Alert | -11 -10 -10 -10 -9 -8 -7 -7 -7 -7 -5 -5 -5 -5 -4 -4 -4 -4 -4 -3 -3 -2 -1 ------- Run | Yrd Mat Min Exi Min Mat Fac Sto Rec Scr Fac Upp Upp Zhi Pro Fac Upp Upp War Pro Res Res Acc Maximum Alert Level 2 | . . . . . 1 . 1 . . . . . . . . . . . . 2 1 . Low Security (%) 93 | 100 100 100 . 100 96 100 83 100 . 100 . . . . 100 . . . . 9 92 100 Level 1 3 | . . . . . 3 . 16 . . . . . . . . . . . . 36 7 . Level 2 2 | . . . . . . . . . . . . . . . . . . . . 54 . . Level 3 . | . . . . . . . . . . . . . . . . . . . . . . . Level 4 . | . . . . . . . . . . . . . . . . . . . . . . . Level 5 . | . . . . . . . . . . . . . . . . . . . . . . . High Security . | . . . . . . . . . . . . . . . . . . . . . . . Max Security . | . . . . . . . . . . . . . . . . . . . . . . . Peak Influence 630 | . 164 107 . 99 216 123 233 150 . 171 . . . . 93 . . . . 630 223 120 Initial 630 | . . 30 . . . 46 54 57 . . . . . . 93 . . . . 630 223 120 Average 74 | . 66 37 . 7 89 32 118 43 . 122 . . . . 26 . . . . 370 77 45 Influence Increases 8823 | . 511 295 . 109 787 623 725 436 . 704 400 338 . 452 420 536 415 380 265 1102 305 20 Destroy 0b10 Robot/C 5340 | . 300 240 . 80 540 380 300 120 . 440 320 220 . 320 220 420 340 300 240 360 200 . Destroy 0b10 Robot/NC 360 | . 40 5 . 10 35 40 65 10 . 75 5 10 . 10 10 5 5 5 15 10 . 5 Destroy Leader 970 | . 78 50 . 10 138 102 120 . . 118 30 20 . 50 64 30 20 . 10 70 60 . Allied During Kill 298 | . . . . 9 21 . 136 2 . . . 13 . 57 4 36 20 . . . . . Successful Hack 246 | . 3 . . . 23 71 27 64 . 26 . . . . 32 . . . . . . . Select Force Hacks 270 | . 30 . . . . . . 240 . . . . . . . . . . . . . . Disable Machine 135 | . . . . . . 15 75 . . 30 . . . . . . . . . 15 . . Destroy Structure 4 | . . . . . . . 2 . . . . . . . . . . . . 2 . . Advance Influence 600 | . . . . . . . . . . . . . . . . . . . . 600 . . Partial Spotted 30 | . 15 . . . . . . . . . . . . . 15 . . . . . . . Lose Combat Pursuer 570 | . 45 . . . 30 15 . . . 15 45 75 . 15 75 45 30 75 . 45 45 15 Influence Decreases 8823 | . 433 373 . 109 683 606 699 485 98 556 488 386 12 303 518 482 436 166 517 750 502 221 Entered New Map 1192 | . . 48 . . . 58 67 90 98 . 56 12 12 . 56 20 21 84 298 16 175 81 Time Decay 6472 | . 433 325 . 109 415 443 436 383 . 556 432 334 . 283 414 422 415 72 219 334 307 140 Search Patrol Dispatched 100 | . . . . . . . . . . . . . . . . . . . . 100 . . Lost Part 40 | . . . . . . . . . . . . . . . 10 . . 10 . . 20 . Lost Ally 296 | . . . . . . . 196 . . . . 40 . 20 . 40 . . . . . . Purge Threat 723 | . . . . . 268 105 . 12 . . . . . . 38 . . . . 300 . . Squads Dispatched 42 | . 3 . . . 5 6 10 . . 7 . . . . 5 . . . . 3 2 1 Investigation 3 | . 2 . . . 1 . . . . . . . . . . . . . . . . . Extermination 20 | . . . . . . 6 3 . . 4 . . . . 4 . . . . 2 . 1 Reinforcement 16 | . 1 . . . 4 . 4 . . 3 . . . . 1 . . . . 1 2 . Assault . | . . . . . . . . . . . . . . . . . . . . . . . Garrison 3 | . . . . . . . 3 . . . . . . . . . . . . . . . Intercept . | . . . . . . . . . . . . . . . . . . . . . . . Searches Triggered 1 | . . . . . . . . . . . . . . . . . . . . 1 . . Construction Impeded . | . . . . . . . . . . . . . . . . . . . . . . . Haulers Reinforced 2 | . . . . . . . . . . 1 . . . . . . . . . . 1 . Active Scanning Responses . | . . . . . . . . . . . . . . . . . . . . . . . Cargo Convoy Interrupts . | . . . . . . . . . . . . . . . . . . . . . . . Stealth | -11 -10 -10 -10 -9 -8 -7 -7 -7 -7 -5 -5 -5 -5 -4 -4 -4 -4 -4 -3 -3 -2 -1 --------- Run | Yrd Mat Min Exi Min Mat Fac Sto Rec Scr Fac Upp Upp Zhi Pro Fac Upp Upp War Pro Res Res Acc Distress Signals 22 | . 1 . . . 2 3 2 . . . . . . . . . . . . 1 12 1 Communications Jammed 254 | . . . . . . . . . . 1 . . . . . . . 229 2 16 . 6 Distress Signals 251 | . . . . . . . . . . . . . . . . . . 229 . 16 . 6 Times Spotted 436 | . 28 12 . 5 35 30 25 6 . 32 16 21 . 17 19 24 20 73 17 27 21 8 Peak Tracking Total 23 | . 6 5 . 4 4 4 5 4 . 6 5 4 . 5 2 7 5 23 4 7 6 4 Tactical Retreats 28 | . 2 . . . 2 1 . . . 1 1 4 . 1 5 2 2 1 . 2 3 1 Traps | -11 -10 -10 -10 -9 -8 -7 -7 -7 -7 -5 -5 -5 -5 -4 -4 -4 -4 -4 -3 -3 -2 -1 ------- Run | Yrd Mat Min Exi Min Mat Fac Sto Rec Scr Fac Upp Upp Zhi Pro Fac Upp Upp War Pro Res Res Acc Traps Triggered 13 | . 1 . . . 1 . 3 . . 3 . . . . 2 . . . . 3 . . Indirectly . | . . . . . . . . . . . . . . . . . . . . . . . Trap Hack Attempts . | . . . . . . . . . . . . . . . . . . . . . . . Triggered . | . . . . . . . . . . . . . . . . . . . . . . . Disarmed . | . . . . . . . . . . . . . . . . . . . . . . . Reprogrammed . | . . . . . . . . . . . . . . . . . . . . . . . Reused 1 | . . . . . . . . . . . . 1 . . . . . . . . . . Traps Extracted . | . . . . . . . . . . . . . . . . . . . . . . . Installed 1 | . . . . . . . . . . . . 1 . . . . . . . . . . Triggered 1 | . . . . . . . . . . . . 1 . . . . . . . . . . Most Traps Carried 1 | . . . . . . . . . . . . 1 . . . . . . . . . . Machines | -11 -10 -10 -10 -9 -8 -7 -7 -7 -7 -5 -5 -5 -5 -4 -4 -4 -4 -4 -3 -3 -2 -1 ---------- Run | Yrd Mat Min Exi Min Mat Fac Sto Rec Scr Fac Upp Upp Zhi Pro Fac Upp Upp War Pro Res Res Acc Machines Disabled 10 | . . . . . . 1 5 . . 2 . . . . . . . . 1 1 . . Max in Single Turn 1 | . . . . . . 1 1 . . 1 . . . . . . . . 1 1 . . Garrison Access 1 | . . . . . . . . . . . . . . . . . . . . . 1 . Machines Repaired . | . . . . . . . . . . . . . . . . . . . . . . . Machines Dismantled . | . . . . . . . . . . . . . . . . . . . . . . . Machines Sabotaged . | . . . . . . . . . . . . . . . . . . . . . . . Overloaded Fab Kills . | . . . . . . . . . . . . . . . . . . . . . . . Hacking | -11 -10 -10 -10 -9 -8 -7 -7 -7 -7 -5 -5 -5 -5 -4 -4 -4 -4 -4 -3 -3 -2 -1 --------- Run | Yrd Mat Min Exi Min Mat Fac Sto Rec Scr Fac Upp Upp Zhi Pro Fac Upp Upp War Pro Res Res Acc Machines Accessed 74 | . 7 . 4 . 8 11 6 14 . 6 . . 4 . 8 . . 4 . 2 . . Terminals 52 | . 6 . . . 8 11 6 6 . 6 . . . . 7 . . . . 2 . . Fabricators . | . . . . . . . . . . . . . . . . . . . . . . . Repair Stations 1 | . . . . . . . . . . . . . . . 1 . . . . . . . Recycling Units 9 | . 1 . . . . . . 8 . . . . . . . . . . . . . . Scanalyzers . | . . . . . . . . . . . . . . . . . . . . . . . Garrison Access . | . . . . . . . . . . . . . . . . . . . . . . . Total Hacks 228 | . 15 . 26 . 31 35 9 31 . 24 . . 17 . 20 . . 11 . 9 . . Successful 155 | . 9 . 26 . 19 17 6 24 . 8 . . 17 . 14 . . 11 . 4 . . Failed 73 | . 6 . . . 12 18 3 7 . 16 . . . . 6 . . . . 5 . . Catastrophic 7 | . 1 . . . 1 1 1 . . 2 . . . . . . . . . 1 . . Database Lockouts . | . . . . . . . . . . . . . . . . . . . . . . . Manual 112 | . 10 . 1 . 20 22 8 20 . 17 . . . . 12 . . . . 2 . . Terminals 151 | . 13 . . . 31 35 9 14 . 24 . . . . 16 . . . . 9 . . Fabricators . | . . . . . . . . . . . . . . . . . . . . . . . Repair Stations 4 | . . . . . . . . . . . . . . . 4 . . . . . . . Recycling Units 19 | . 2 . . . . . . 17 . . . . . . . . . . . . . . Scanalyzers . | . . . . . . . . . . . . . . . . . . . . . . . Garrison Access . | . . . . . . . . . . . . . . . . . . . . . . . Terminal Hacks 95 | . 3 . 26 . 13 7 2 2 . 4 . . 17 . 8 . . 11 . 2 . . Record 35 | . . . 25 . . . . . . . . . 5 . . . . 5 . . . . Part Schematic 4 | . . . . . . . . . . . . . 4 . . . . . . . . . Robot Analysis 4 | . . . . . . . . . . . . . 4 . . . . . . . . . Prototype ID Bank 10 | . . . . . 1 . . . . . . . 4 . . . . 5 . . . . Open Door 2 | . . . . . . . 1 . . . . . . . . . . 1 . . . . Level Access Points 1 | . . . . . 1 . . . . . . . . . . . . . . . . . Branch Access Points 4 | . . . . . 1 1 . . . 1 . . . . 1 . . . . . . . Terminal Index 5 | . . . . . 2 1 . . . 1 . . . . 1 . . . . . . . Alert Level 2 | . . . . . 2 . . . . . . . . . . . . . . . . . Unreport Threat 11 | . . . . . 2 2 . 2 . . . . . . 3 . . . . 2 . . Locate Traps 9 | . 2 . . . 1 2 . . . 1 . . . . 3 . . . . . . . Hauler Manifests 1 | . . . . . 1 . . . . . . . . . . . . . . . . . Zone Layout 6 | . 1 . . . 2 1 1 . . 1 . . . . . . . . . . . . Proto ID Catalog 1 | . . . 1 . . . . . . . . . . . . . . . . . . . Fabricator Hacks . | . . . . . . . . . . . . . . . . . . . . . . . Repair Station Hacks 2 | . . . . . . . . . . . . . . . 2 . . . . . . . Scan Component 1 | . . . . . . . . . . . . . . . 1 . . . . . . . Repair 1 | . . . . . . . . . . . . . . . 1 . . . . . . . Recycling Unit Hacks 10 | . 1 . . . . . . 9 . . . . . . . . . . . . . . Report Inventory 9 | . 1 . . . . . . 8 . . . . . . . . . . . . . . Retrieve Components 1 | . . . . . . . . 1 . . . . . . . . . . . . . . Scanalyzer . | . . . . . . . . . . . . . . . . . . . . . . . Garrison Access Hacks . | . . . . . . . . . . . . . . . . . . . . . . . Unauthorized Hacks 48 | . 5 . . . 6 10 4 13 . 4 . . . . 4 . . . . 2 . . Terminals 39 | . 4 . . . 6 10 4 5 . 4 . . . . 4 . . . . 2 . . Botnet 39 | . 4 . . . 6 10 4 5 . 4 . . . . 4 . . . . 2 . . Fabricators . | . . . . . . . . . . . . . . . . . . . . . . . Repair Stations . | . . . . . . . . . . . . . . . . . . . . . . . Recycling Units 9 | . 1 . . . . . . 8 . . . . . . . . . . . . . . Tunnel 9 | . 1 . . . . . . 8 . . . . . . . . . . . . . . Scanalyzers . | . . . . . . . . . . . . . . . . . . . . . . . Garrison Access . | . . . . . . . . . . . . . . . . . . . . . . . Data Cores Recovered 2 | . . . . . 1 . 1 . . . . . . . . . . . . . . . Used . | . . . . . . . . . . . . . . . . . . . . . . . Hacking Detections 37 | . 4 . . . 5 9 4 4 . 6 . . . . 3 . . . . 2 . . Full Trace Events 1 | . . . . . 1 . . . . . . . . . . . . . . . . . Feedback Events . | . . . . . . . . . . . . . . . . . . . . . . . Feedback Blocked . | . . . . . . . . . . . . . . . . . . . . . . . Robot Schematics Acquired . | . . . . . . . . . . . . . . . . . . . . . . . Robots Built . | . . . . . . . . . . . . . . . . . . . . . . . Authchips . | . . . . . . . . . . . . . . . . . . . . . . . Time . | . . . . . . . . . . . . . . . . . . . . . . . Total Robot Build Rating . | . . . . . . . . . . . . . . . . . . . . . . . Part Schematics Acquired 4 | . . . . . . . . . . . . . 4 . . . . . . . . . Parts Built . | . . . . . . . . . . . . . . . . . . . . . . . Authchips . | . . . . . . . . . . . . . . . . . . . . . . . Time . | . . . . . . . . . . . . . . . . . . . . . . . Total Part Build Rating . | . . . . . . . . . . . . . . . . . . . . . . . Part Studies Acquired . | . . . . . . . . . . . . . . . . . . . . . . . Parts Repaired 1 | . . . . . . . . . . . . . . . 1 . . . . . . . Time 22 | . . . . . . . . . . . . . . . 22 . . . . . . . Parts Recycled . | . . . . . . . . . . . . . . . . . . . . . . . Recycled Matter . | . . . . . . . . . . . . . . . . . . . . . . . Retrieved Matter . | . . . . . . . . . . . . . . . . . . . . . . . Retrieved Components 4 | . . . . . . . . 4 . . . . . . . . . . . . . . Parts Scanalyzed . | . . . . . . . . . . . . . . . . . . . . . . . Part Schematics Acquired . | . . . . . . . . . . . . . . . . . . . . . . . Parts Damaged . | . . . . . . . . . . . . . . . . . . . . . . . Bothacking | -11 -10 -10 -10 -9 -8 -7 -7 -7 -7 -5 -5 -5 -5 -4 -4 -4 -4 -4 -3 -3 -2 -1 ------------ Run | Yrd Mat Min Exi Min Mat Fac Sto Rec Scr Fac Upp Upp Zhi Pro Fac Upp Upp War Pro Res Res Acc Used RIF Installer . | . . . . . . . . . . . . . . . . . . . . . . . Robots Hacked . | . . . . . . . . . . . . . . . . . . . . . . . Non-combat . | . . . . . . . . . . . . . . . . . . . . . . . Combat . | . . . . . . . . . . . . . . . . . . . . . . . Robot Hacks Applied . | . . . . . . . . . . . . . . . . . . . . . . . Relay Couplers Released 2 | . . . . . . . . . . . . . . . . . . . . . 2 . Machine Destruction 2 | . . . . . . . . . . . . . . . . . . . . . 2 . Fabnet Peak Effective % . | . . . . . . . . . . . . . . . . . . . . . . . Robots Rewired 14 | . . . . . . . . 4 . . . 4 . . . 2 2 . 2 . . . Allies Hacked 1 | . . . . . . . 1 . . . . . . . . . . . . . . . Hacks Repelled . | . . . . . . . . . . . . . . . . . . . . . . . Allies | -11 -10 -10 -10 -9 -8 -7 -7 -7 -7 -5 -5 -5 -5 -4 -4 -4 -4 -4 -3 -3 -2 -1 -------- Run | Yrd Mat Min Exi Min Mat Fac Sto Rec Scr Fac Upp Upp Zhi Pro Fac Upp Upp War Pro Res Res Acc Total Allies 28 | . . 3 . 1 . . 10 4 . . . 4 . . . 2 2 . 2 . . . Largest Group 10 | . . 3 3 3 2 . 10 4 2 1 . 2 2 2 1 2 2 . 2 . . . Highest-Rated Group 173 | . . 40 40 55 24 . 173 125 64 32 . 62 60 60 30 77 96 . 95 . . . Highest-Rated Ally 49 | . . 16 16 31 16 . 29 40 32 32 . 31 30 30 30 47 49 . 48 . . . Total Orders . | . . . . . . . . . . . . . . . . . . . . . . . Ally Attacks 194 | . . . . 5 28 . 74 . . 1 . 27 . 13 2 24 17 . 3 . . . Total Damage 3549 | . . . . 42 321 . 914 . . 53 . 371 . 521 63 611 574 . 79 . . . Kills 27 | . . . . 3 3 . 8 . . 1 . 3 . . 1 5 3 . . . . . Allies Corrupted . | . . . . . . . . . . . . . . . . . . . . . . . Allies Melted 2 | . . . . . . . . . . . . . . . . . . 2 . . . . Intel | -11 -10 -10 -10 -9 -8 -7 -7 -7 -7 -5 -5 -5 -5 -4 -4 -4 -4 -4 -3 -3 -2 -1 ------- Run | Yrd Mat Min Exi Min Mat Fac Sto Rec Scr Fac Upp Upp Zhi Pro Fac Upp Upp War Pro Res Res Acc Active Infowar (turns) 13105 | . . 31 . . . . . . . 955 1317 1140 201 800 1818 1027 1748 1108 760 758 1075 367 Sensors 31 | . . 31 . . . . . . . . . . . . . . . . . . . . Jamming 13074 | . . . . . . . . . . 955 1317 1140 201 800 1818 1027 1748 1108 760 758 1075 367 Robot Analysis Total 4 | . . . . . . . . . . . . . 4 . . . . . . . . . Derelict Logs Recovered 13 | . . 2 . 1 . . . . . . 1 2 . 2 . 3 2 . . . . . Drone Launches . | . . . . . . . . . . . . . . . . . . . . . . . Drone Recoveries . | . . . . . . . . . . . . . . . . . . . . . . . Exploration | -11 -10 -10 -10 -9 -8 -7 -7 -7 -7 -5 -5 -5 -5 -4 -4 -4 -4 -4 -3 -3 -2 -1 ------------- Run | Yrd Mat Min Exi Min Mat Fac Sto Rec Scr Fac Upp Upp Zhi Pro Fac Upp Upp War Pro Res Res Acc Turns Passed 27257 | 48 1706 1058 959 1182 1551 2547 1103 1517 865 1838 1369 1205 201 1377 1821 1027 1748 1144 791 758 1075 367 Spaces Moved 19333 | 43 1226 754 797 900 905 1642 786 1191 738 1195 1031 857 155 1021 1114 747 1387 846 539 470 711 278 Core 13 | 11 . . . . . 2 . . . . . . . . . . . . . . . . Treads . | . . . . . . . . . . . . . . . . . . . . . . . Legs 5285 | 32 1226 754 797 900 905 671 . . . . . . . . . . . . . . . . Wheels 14035 | . . . . . . 969 786 1191 738 1195 1031 857 155 1021 1114 747 1387 846 539 470 711 278 Hover . | . . . . . . . . . . . . . . . . . . . . . . . Flight . | . . . . . . . . . . . . . . . . . . . . . . . Fastest Speed 50 | 50 120 120 120 120 120 100 100 115 115 100 115 115 115 115 115 115 115 115 115 115 115 115 Average Speed 119 | 102 120 120 120 120 125 138 112 115 115 114 115 115 116 115 118 115 115 115 115 115 129 126 Slowest Speed 350 | 120 120 120 120 120 193 350 115 115 115 115 115 115 145 115 130 115 115 115 115 115 130 130 Overloaded Moves . | . . . . . . . . . . . . . . . . . . . . . . . Propulsion Burnouts . | . . . . . . . . . . . . . . . . . . . . . . . Robots Hopped 1 | . . . . . . . . . . . . . . . 1 . . . . . . . Potential Cave-ins . | . . . . . . . . . . . . . . . . . . . . . . . Cave-ins Triggered . | . . . . . . . . . . . . . . . . . . . . . . . Exploration Rate (%) 64 | 4 95 99 93 91 71 36 73 99 56 29 97 76 59 97 27 74 95 82 67 12 33 7 Regions Visited 22 Branch Regions 14 Pre-discovered Areas 17 | . 1 . 1 . . . . 8 . . . 1 3 1 . . 2 . . . . . Known Exits Taken 10 | . 1 1 1 . 1 1 . . . 1 . . . . 1 1 . . 1 1 . . Unknown Exits Taken 12 | 1 . . . 1 . . 1 1 1 . 1 1 1 1 . . 1 1 . . 1 . Scrap Searched 21 | . . 2 . 2 . . . . 5 . 3 2 . 2 . . 2 . 3 . . . Spaces Dug 3 | . . . . . . . 2 . . . . . . . . . . . . 1 . . Terrain Destroyed 3 | . . . . . . . 2 . . . . . . . . . . . . 1 . . Melee 3 | . . . . . . . 2 . . . . . . . . . . . . 1 . . Projectile . | . . . . . . . . . . . . . . . . . . . . . . . AOE . | . . . . . . . . . . . . . . . . . . . . . . . Terrain Rammed . | . . . . . . . . . . . . . . . . . . . . . . . Walls Destroyed . | . . . . . . . . . . . . . . . . . . . . . . . Machines Disabled . | . . . . . . . . . . . . . . . . . . . . . . . Actions | -11 -10 -10 -10 -9 -8 -7 -7 -7 -7 -5 -5 -5 -5 -4 -4 -4 -4 -4 -3 -3 -2 -1 --------- Run | Yrd Mat Min Exi Min Mat Fac Sto Rec Scr Fac Upp Upp Zhi Pro Fac Upp Upp War Pro Res Res Acc Total 22261 | 45 1356 839 800 997 1247 1821 939 1317 754 1530 1135 1011 176 1142 1549 852 1482 947 629 604 800 289 Wait 1572 | . 41 36 . 92 220 99 58 49 17 204 34 32 9 61 374 25 32 58 28 65 30 8 Move 19309 | 42 1225 753 796 899 904 1641 785 1190 737 1194 1030 856 154 1020 1111 746 1386 845 538 469 710 278 Hop 1 | . . . . . . . . . . . . . . . 1 . . . . . . . Pick Up 15 | . . 1 1 1 2 . . . . . . 2 2 1 2 . 2 . . . 1 . Fast Attach 68 | 3 9 . . . 8 8 7 1 . 9 1 2 3 . 6 1 1 3 1 . 3 2 Attach 10 | . . . 1 . 1 1 . . . . . 2 2 1 1 . . . 1 . . . Detach 21 | . 3 . 1 . 2 5 . . . 2 1 1 1 . 1 . . . 1 . 3 . Swap 10 | . 5 2 . . . . . . . . . . 1 . 1 . 1 . . . . . Drop 48 | . 8 . 1 . 8 4 5 . . 6 . 2 4 . 4 1 2 . 1 . 2 . Fire . | . . . . . . . . . . . . . . . . . . . . . . . Melee 576 | . 52 35 . 4 56 45 40 13 . 70 30 24 . 33 26 23 20 23 29 30 22 1 Ram . | . . . . . . . . . . . . . . . . . . . . . . . Kick . | . . . . . . . . . . . . . . . . . . . . . . . Crush . | . . . . . . . . . . . . . . . . . . . . . . . Escape Stasis 24 | . . . . . . . . . . . . . . . . . . . . 24 . . Rewire 102 | . . . . . . . 1 31 . . . 53 . . . 9 4 . 4 . . . Trap 1 | . . . . . . . . . . . . 1 . . . . . . . . . . Miscellaneous 504 | . 13 12 . 1 46 18 43 33 . 45 39 36 . 26 22 47 34 18 26 16 29 . Route ------- -11/Scrapyard -10/Materials (discovered 5 exits: *Mat x3 / *Min x2) -10/Mines (discovered 4 exits: *Mat x2 / *Exi / *Sub) -10/Exiles (discovered 2 exits: *Min x2) -9/Mines (discovered 2 exits: *Mat x2) -8/Materials (discovered 3 exits: *Fac x3) -7/Factory (discovered 3 exits: *Sto / *Low x2) -7/Storage -7/Recycling (discovered 2 exits: *Fac / [*Scr]) -7/Scraptown -5/Factory (discovered 4 exits: *Fac x2 / *Upp x2) -5/Upper Caves -5/Upper Caves (discovered 2 exits: *Fac / *Zhi) -5/Zhirov -4/Proximity Caves -4/Factory (discovered 4 exits: Res / *Upp x2 / Arm) -4/Upper Caves -4/Upper Caves (discovered 2 exits: *Res / *War) -4/Warlord -3/Proximity Caves -3/Research (discovered 4 exits: *Res x3 / Tes) -2/Research (discovered 2 exits: [*Acc] / [*Qua]) -1/Access History --------- Turn | Location | Event 1 | -11/Scrapyard | Upgraded with Propulsion slot (x1) 1 | -11/Scrapyard | Upgraded with Weapon slot (x1) 8 | -11/Scrapyard | Discovered new exit (range 15) 49 | -11/Scrapyard | Entered Materials 229 | -10/Materials | Discovered new exit (range 10) 256 | -10/Materials | Discovered new exit (range 15) 313 | -10/Materials | Build established: Mutant 518 | -10/Materials | Discovered new exit (range 12) 804 | -10/Materials | Discovered new exit (range 12) 979 | -10/Materials | Reached level 2 994 | -10/Materials | Upgraded with Power slot (x1) 1001 | -10/Materials | Discovered new exit (range 7) 1007 | -10/Materials | Upgraded with Utility slot (x1) 1179 | -10/Materials | Upgraded with Weapon slot (x1) 1423 | -10/Materials | Identified exit to Mines 1492 | -10/Materials | Build established: Scavenger-Gladiator 1568 | -10/Materials | Identified exit to Materials 1755 | -10/Materials | Entered Mines 1824 | -10/Mines | Deemed a non-threat by the Exiles lab entrance 1825 | -10/Mines | Discovered new exit (range 5) 1830 | -10/Mines | Identified exit to Exiles 1910 | -10/Mines | Learned location of 1 exit from Materials 2093 | -10/Mines | Reached level 3 2094 | -10/Mines | Core integrity fell below 50% 2157 | -10/Mines | Discovered new exit (range 6) 2163 | -10/Mines | Identified exit to Subcaves 2323 | -10/Mines | Learned location of 1 exit from Materials 2489 | -10/Mines | Found a damaged Exp. Sensor Array with a note attached 2492 | -10/Mines | Found Prototype Device 2493 | -10/Mines | Identified Exp. Sensor Array 2638 | -10/Mines | Discovered exit to Materials (range 7) 2733 | -10/Mines | Discovered exit to Materials (range 7) 2745 | -10/Mines | Assisted by bots powering up and referring to "LRC-V3" 2813 | -10/Mines | Entered Exiles 2813 | -10/Exiles | Accompanied by 3 allies 2843 | -10/Exiles | Discovered new exit (range 15) 2865 | -10/Exiles | Identified exit to Mines 2894 | -10/Exiles | Met 8R-AWN 2921 | -10/Exiles | Met EX-HEX 3004 | -10/Exiles | Met EX-DEC 3036 | -10/Exiles | Visited The Gauntlet 3245 | -10/Exiles | Discovered exit to Mines (range 14) 3323 | -10/Exiles | Learned location of Zion (-7) 3356 | -10/Exiles | Met EX-BIN 3511 | -10/Exiles | Aligned with FarCom system 3512 | -10/Exiles | Given EX-Vault access code 3549 | -10/Exiles | Opened EX-Vault 3560 | -10/Exiles | Found Longsword +1 3585 | -10/Exiles | Warned to stay clear of 0b10 Research branches 3594 | -10/Exiles | Upgraded with Weapon slot (x1) 3772 | -10/Exiles | Left Exiles lab with Longsword +1 3772 | -10/Exiles | Entered Mines 3772 | -9/Mines | Accompanied by 3 allies 3774 | -9/Mines | Reached level 4 4005 | -9/Mines | Discovered new exit (range 5) 4006 | -9/Mines | Received a Mining Laser from a helpful Derelict 4102 | -9/Mines | Assembled infested the area 4107 | -9/Mines | Assisted by a Guerilla fighting off Assembled 4441 | -9/Mines | Received a Rocket Launcher from a helpful Derelict 4466 | -9/Mines | Discovered new exit (range 13) 4954 | -9/Mines | Entered Materials 4954 | -8/Materials | Accompanied by 2 allies 4955 | -8/Materials | Identified exit to Factory 4956 | -8/Materials | Reached level 5 4964 | -8/Materials | Upgraded with Propulsion slot (x1) 5107 | -8/Materials | Reached level 6 5108 | -8/Materials | Core integrity fell below 50% 5645 | -8/Materials | Build established: Hacker-Gladiator 5862 | -8/Materials | Reached level 7 5883 | -8/Materials | Upgraded with Utility slot (x1) 6505 | -8/Materials | Entered Factory 6507 | -7/Factory | Reached level 8 6507 | -7/Factory | Upgraded with Utility slot (x1) 7160 | -7/Factory | Reached level 9 7582 | -7/Factory | Identified exit to Storage 7582 | -7/Factory | Identified exit to Lower Caves 7826 | -7/Factory | Upgraded with Propulsion slot (x1) 8350 | -7/Factory | Core integrity fell below 50% 8585 | -7/Factory | Reached level 10 8967 | -7/Factory | Upgraded with Weapon slot (x1) 9044 | -7/Factory | Upgraded with Utility slot (x1) 9052 | -7/Factory | Entered Storage 9054 | -7/Storage | Reached level 11 9186 | -7/Storage | Assisted by bots powering up and referring to "LRC-V3" 9272 | -7/Storage | Used back door to open Recycling access 9272 | -7/Storage | Discovered new exit (range 4) 9314 | -7/Storage | Met 01-MTF 9504 | -7/Storage | Build established: Commander-Gladiator 9534 | -7/Storage | Reached level 12 9666 | -7/Storage | Upgraded with Weapon slot (x1) 9672 | -7/Storage | Garrison activated, responded to threat 9719 | -7/Storage | Reached level 13 9753 | -7/Storage | Lost 6 allies 9916 | -7/Storage | Upgraded with Utility slot (x1) 10005 | -7/Storage | Build established: Hacker-Gladiator 10155 | -7/Storage | Entered Recycling 10155 | -7/Recycling | Accompanied by 1 ally (01-MTF) 10157 | -7/Recycling | Reached level 14 10569 | -7/Recycling | Discovered new exit (range 5) 11016 | -7/Recycling | Scanned before Scraplab entrance 11063 | -7/Recycling | Lost 4 allies 11115 | -7/Recycling | Upgraded with Weapon slot (x1) 11410 | -7/Recycling | Reached level 15 11624 | -7/Recycling | Entered Scraplab 11634 | -7/Recycling | Discovered new exit (range 3) 11672 | -7/Recycling | Entered Scraptown 11672 | -7/Scraptown | Accompanied by 2 allies 11922 | -7/Scraptown | Discovered new exit (range 13) 11996 | -7/Scraptown | Visited Bundlers 12073 | -7/Scraptown | Heard Great Nut preacher, LISTEN AND RECITE! 12296 | -7/Scraptown | Visited Spacefarers 12306 | -7/Scraptown | Visited Fellowship of the Rings 12320 | -7/Scraptown | Visited Cave Peace 12381 | -7/Scraptown | Visited Awakened 12397 | -7/Scraptown | Visited Shadow of the Wyrm 12437 | -7/Scraptown | Turned away by UFD registrar 12537 | -7/Scraptown | Entered Factory 12537 | -5/Factory | Accompanied by 2 allies 12539 | -5/Factory | Reached level 16 12686 | -5/Factory | Discovered new exit (range 12) 12893 | -5/Factory | Reached level 17 13206 | -5/Factory | Upgraded with Utility slot (x1) 13492 | -5/Factory | Identified exit to Upper Caves 13896 | -5/Factory | Reached level 18 14094 | -5/Factory | Discovered new exit (range 16) 14375 | -5/Factory | Entered Upper Caves 14518 | -5/Upper Caves | Learned Factory garrison access intel 14639 | -5/Upper Caves | Spotted B-75 Beast 14696 | -5/Upper Caves | Destroyed B-75 Beast 14892 | -5/Upper Caves | Reached level 19 15461 | -5/Upper Caves | Attracted the attention of an 0b10 outpost 15613 | -5/Upper Caves | Discovered new exit (range 8) 15744 | -5/Upper Caves | Entered another Upper Caves area 15746 | -5/Upper Caves | Reached level 20 15747 | -5/Upper Caves | Discovered new exit (range 12) 15897 | -5/Upper Caves | Upgraded with Power slot (x1) 16258 | -5/Upper Caves | Attracted the attention of an 0b10 checkpoint 16567 | -5/Upper Caves | Attracted the attention of an 0b10 outpost 16612 | -5/Upper Caves | Learned location of Warlord (-4) 16756 | -5/Upper Caves | Discovered new exit (range 15) 16774 | -5/Upper Caves | Learned 12 Factory zone layouts 16949 | -5/Upper Caves | Entered Zhirov 16949 | -5/Zhirov | Accompanied by 2 allies 16949 | -5/Zhirov | Discovered new exit (range 3) 16970 | -5/Zhirov | Met Zhirov 16995 | -5/Zhirov | Learned location of Quarantine (-2) 16995 | -5/Zhirov | Learned location of Command (-1) 17008 | -5/Zhirov | Zhirov requested help retrieving the SGEMP Prototype 17031 | -5/Zhirov | Found Alien Artifact 17034 | -5/Zhirov | Identified Integrated Reactor 17034 | -5/Zhirov | Installed Integrated Reactor, increased core energy generation (+10) 17150 | -5/Zhirov | Entered Proximity Caves 17150 | -4/Proximity Caves | Accompanied by 2 allies 17152 | -4/Proximity Caves | Reached level 21 17392 | -4/Proximity Caves | Learned location of 2 exits from Research 17516 | -4/Proximity Caves | Attracted the attention of an 0b10 checkpoint 17536 | -4/Proximity Caves | Reached level 22 17877 | -4/Proximity Caves | Spotted B-86 Titan 17928 | -4/Proximity Caves | Destroyed B-86 Titan 18143 | -4/Proximity Caves | Discovered new exit (range 11) 18381 | -4/Proximity Caves | Upgraded with Weapon slot (x1) 18527 | -4/Proximity Caves | Entered Factory 18527 | -4/Factory | Accompanied by 1 ally 18528 | -4/Factory | Identified exit to Research 18529 | -4/Factory | Loaded intel: 4 garrison access locations 18529 | -4/Factory | Reached level 23 18859 | -4/Factory | Identified exit to Upper Caves 18859 | -4/Factory | Identified exit to Armory 18859 | -4/Factory | Reached level 24 19024 | -4/Factory | Upgraded with Utility slot (x1) 20094 | -4/Factory | Found Prototype Hackware 20338 | -4/Factory | Repaired Med. Insulated Plating 20348 | -4/Factory | Entered Upper Caves 20365 | -4/Upper Caves | Attracted the attention of an 0b10 outpost 20423 | -4/Upper Caves | Destroyed 7 combat bots 20429 | -4/Upper Caves | Learned 8 Research zone layouts 20707 | -4/Upper Caves | Identified exit to Upper Caves 20733 | -4/Upper Caves | Reached level 25 21143 | -4/Upper Caves | Attracted the attention of an 0b10 checkpoint 21342 | -4/Upper Caves | Learned 12 Research zone layouts 21375 | -4/Upper Caves | Entered another Upper Caves area 21529 | -4/Upper Caves | Attracted the attention of an 0b10 outpost 21702 | -4/Upper Caves | Attracted the attention of an 0b10 checkpoint 22117 | -4/Upper Caves | Ambushed by wild Derelicts 22350 | -4/Upper Caves | Encountered a Warlord checkpoint 22607 | -4/Upper Caves | Discovered exit to Research (range 11) 22984 | -4/Upper Caves | Discovered new exit (range 14) 23123 | -4/Upper Caves | Entered Warlord 23166 | -4/Warlord | System corruption cleaned by Quarantine Array 23195 | -4/Warlord | Discovered new exit (range 14) 23679 | -4/Warlord | Warlord's base attacked by MAIN.C 23742 | -4/Warlord | Met Warlord 23935 | -4/Warlord | Spotted B-90 Cyclops 23940 | -4/Warlord | Lost 8 allies 23940 | -4/Warlord | Spotted B-86 Titan 23962 | -4/Warlord | Spotted B-90 Cyclops 23984 | -4/Warlord | Spotted B-86 Titan 24018 | -4/Warlord | Lost 3 allies 24027 | -4/Warlord | Destroyed B-86 Titan 24027 | -4/Warlord | Reached level 26 24029 | -4/Warlord | Warlord forces counterattacked 24058 | -4/Warlord | P-80 Master assimilated allied C8-3TA(g) 24067 | -4/Warlord | P-80 Master assimilated allied LC-86L(g) 24088 | -4/Warlord | Spotted Executioner 24113 | -4/Warlord | Destroyed Executioner 24126 | -4/Warlord | Spotted Striker 24126 | -4/Warlord | Spotted Striker 24140 | -4/Warlord | Lost 3 allies 24207 | -4/Warlord | Spotted Striker 24228 | -4/Warlord | Spotted Striker 24233 | -4/Warlord | Lost 12 allies 24237 | -4/Warlord | Destroyed 7 combat bots 24237 | -4/Warlord | Spotted Striker 24255 | -4/Warlord | Core integrity fell below 50% 24267 | -4/Warlord | Entered Proximity Caves 24270 | -3/Proximity Caves | Spotter reported a threat 24273 | -3/Proximity Caves | Identified Exp. Hacking Suite 24296 | -3/Proximity Caves | Lost 3 allies 24464 | -3/Proximity Caves | Attracted the attention of an 0b10 outpost 24484 | -3/Proximity Caves | Spotter reported a threat 24532 | -3/Proximity Caves | Reached level 27 24591 | -3/Proximity Caves | Destroyed 7 combat bots 24684 | -3/Proximity Caves | Spotter reported a threat 24758 | -3/Proximity Caves | Spotted B-86 Titan 24792 | -3/Proximity Caves | Upgraded with Utility slot (x1) 24886 | -3/Proximity Caves | Spotter reported a threat 25034 | -3/Proximity Caves | Discovered exit to Research (range 10) 25058 | -3/Proximity Caves | Entered Research 25059 | -3/Research | Identified exit to Research 25060 | -3/Research | Identified exit to Testing 25152 | -3/Research | Reached level 28 25308 | -3/Research | Search patrols dispatched 25547 | -3/Research | Core integrity fell below 50% 25604 | -3/Research | Destroyed 7 combat bots 25816 | -3/Research | Entered another Research area 25816 | -2/Research | Warlord forces began assault on 0b10 25817 | -2/Research | Core integrity fell below 50% 25818 | -2/Research | Reached level 29 25926 | -2/Research | Research machine network offline 26125 | -2/Research | Found Imp. Powered Armor 26128 | -2/Research | Found Imp. Powered Armor 26170 | -2/Research | Reached level 30 26170 | -2/Research | Met up with Warlord 26204 | -2/Research | Found Gamma Bomb Array 26252 | -2/Research | Discovered new exit (range 6) 26408 | -2/Research | Spotted Striker 26509 | -2/Research | Met DD-05H 26577 | -2/Research | Borebot progress halted 26582 | -2/Research | Borebot progress halted 26641 | -2/Research | Spotted Striker 26678 | -2/Research | Spotted Executioner 26685 | -2/Research | Core integrity fell below 20% 26687 | -2/Research | Lost 6 allies 26688 | -2/Research | Spotted Executioner 26710 | -2/Research | Spotted Executioner 26722 | -2/Research | Destroyed Executioner 26740 | -2/Research | Destroyed Executioner 26790 | -2/Research | Discovered new exit (range 15) 26828 | -2/Research | Spotted Striker 26829 | -2/Research | Spotted Executioner 26872 | -2/Research | Lost 3 allies 26875 | -2/Research | Destroyed Executioner 26889 | -2/Research | Spotted Executioner 26891 | -2/Research | Entered Access 26892 | -1/Access | Core integrity fell below 50% 26893 | -1/Access | Reached level 31 26893 | -1/Access | Reached level 32 26948 | -1/Access | P-80 Master assimilated allied KA-HO3(d) 27105 | -1/Access | Spotted B-99 Colossus 27177 | -1/Access | Lost 4 allies 27258 | -1/Access | Self-destructed Last Messages --------------- 26997_ System corrupted: Energy discharge (-320). 27000_ K-01 Serf collects debris. 27024_ System corrupted: Heat flow error (+215). 27072_ K-01 Serf cleans the Wave Collapse Detector. 27105_ Penetrated by Slug. 27123_ Wave Collapse Detector explodes. 27143_ Slug penetrates R7-UT5(M). 27143_ Slug penetrates Wave Collapse Detector. 27143_ Wave Collapse Detector explodes. 27143_ R0-GCH(g) destroyed. 27143_ R7-UT5(M) destroyed. 27143_ WC-4N4(g) destroyed. 27146_ System corrupted: Component data lost. 27146_ Slug penetrates XS-H6R(g). 27146_ XS-H6R(g) destroyed. 27175_ System corrupted: Matter fused (-5). 27185_ Acquired 5 matter. 27246_ System corrupted: Energy discharge (-216). 27257_ ALERT: Potential suspicious activity detected, Programmers report to Access Zone 1V. Map ----- +----------------------------------------------------+ | ?????????????????????????????????????????????????? | | ?????????????????????????????????????????????????? | | ?????????????????????????????????????????????????? | | ?????????????????????????????????????????????????? | | ?????????????????????????????????????????????????? | | ?????????????????????????????????????????????????? | | ?????????????????????????????????????????????????? | | ?????????????????????????????????????????????????? | | ?????????????????????????????????????????????????? | | ?????????????????????????????????????????????????? | | ?????????????????????????????????????????????????? | | ???##############????????????????????????????????? | | ???# #????????????????????????????????? | | ???# #????????????????????????????????? | | ???# #????????????????????????????????? | | ???# #????????????????????????????????? | | ???# ! #????????????????????????????????? | | ???# == ] #????????????????????????????????? | | ???# =[ #????????????????????????????????? | | ???# = #????????????????????????????????? | | ???# #????????????????????????????????? | | ???# #????????????????????????????????? | | ???# #????????????????????????????????? | | ???# #????????????????????????????????? | | ???###+##+########################???????????????? | | ?????# @ ????????? | | ?????# ????????? | | ?????# ????????? | | ?????# s?????????? | | ?????# ss?????????? | | ?????# ??????????? | | ?????# s?????????? | | ?????# ##################### ??????????? | | ?????# #????????????????????? s???????????? | | ?????# #?????????????????????? ?s?????????? | | ?????+ #???????????????????????????????????? | | ?????# #???????????????????????????????????? | | ?????# #???? ??????????????????????????????? | | ?????# #??? ??"????????????????p???????????? | | ?????# #?? ""????????????????????????????? | | ?????# #? """"????????????????????????????? | | ?????# # """""" ?????????????????????????? | | ?????# + "" ????????????????????????? | | ?????# # "" ???????????????????????? | | ?????# # #??????????????????????? | | ?????# # #??????????????????????? | | ?????# #??????????????????????? | | ?????# #??????????????????????? | | ###### # ##########???????????????????????? | | + %% #???????????????????????????????? | +----------------------------------------------------+ Best States ------------- Heat Dissipation 49 Energy Generation 75 Energy Capacity 800 Matter Stores 300 Matter Capacity 300 Sight Range 16 Robot Scan Range 22 Terrain Scan Density 10 Jamming Range 16 Corruption Block 14 Armor Coverage 2000 Resistance: KI 20 Resistance: TH 25 Resistance: EM 20 Melee Speed Boost 20 Evasion (%) 55 Melee Accuracy 5 Offensive Hacking 36 Defensive Hacking 20 Item Schematics ----------------- Assault Drone Bay | -5/Zhirov | Free Exp. Heat Sink | -5/Zhirov | Free Imp. Arc Thrower | -5/Zhirov | Free Exp. Optical Array | -5/Zhirov | Free Robot Schematics ------------------ None Fabricated ------------ Nothing Repaired ---------- Med. Insulated Plating | 23% | -4/Factory Studied --------- None Alien Tech Used ----------------- Integrated Reactor Achievements -------------- All-out Warlord Doshington Ghost 'Em Hammer Time Plot Armor Sixth Sense Challenges ------------ None RPGLIKE | -11 -10 -10 -10 -9 -8 -7 -7 -7 -7 -5 -5 -5 -5 -4 -4 -4 -4 -4 -3 -3 -2 -1 --------- Run | Yrd Mat Min Exi Min Mat Fac Sto Rec Scr Fac Upp Upp Zhi Pro Fac Upp Upp War Pro Res Res Acc Levels Raised 31 | . 1 1 . 1 3 3 3 2 . 3 1 1 . 2 2 1 . 1 1 1 2 2 XP Earned 49508 | 3000 2000 1950 350 959 4917 4255 4197 2464 244 4480 2250 1355 453 2910 2317 1219 783 955 1382 1751 3317 2000 XP Spent 46420 | 1250 3200 50 1200 1480 4320 5000 3400 2000 . 2000 1500 800 . 2300 8600 . . . 2600 . 6720 . Upgrades 87 | 3 7 1 2 12 12 4 2 1 . 1 2 1 . 1 9 . . . 1 . 28 . Power Slot 2 | . 1 . . . . . . . . . . 1 . . . . . . . . . . Propulsion Slot 3 | 1 . . . . 1 1 . . . . . . . . . . . . . . . . Utility Slot 8 | . 1 . . . 1 2 1 . . 1 . . . . 1 . . . 1 . . . Weapon Slot 7 | 1 1 . 1 . . 1 1 1 . . . . . 1 . . . . . . . . Core Integrity 36 | . . . . 8 . . . . . . . . . . . . . . . . 28 . Heat Dissipation 4 | . . . . . 4 . . . . . . . . . . . . . . . . . Mass Support 1 | . . . 1 . . . . . . . . . . . . . . . . . . . Inventory Capacity 1 | 1 . . . . . . . . . . . . . . . . . . . . . . Sensor Range 1 | . . 1 . . . . . . . . . . . . . . . . . . . . Melee Accuracy 8 | . 4 . . . . . . . . . . . . . 4 . . . . . . . Hack Attack % 4 | . . . . . 2 . . . . . . . . . 2 . . . . . . . Hack Defense % 4 | . . . . . 2 . . . . . . . . . 2 . . . . . . . KI Resistance % 4 | . . . . 2 1 . . . . . 1 . . . . . . . . . . . TH Resistance % 4 | . . . . 2 1 . . . . . 1 . . . . . . . . . . . Protomatter Created 3246 | . 101 77 . 5 346 126 103 79 . 304 285 230 . 204 108 340 209 191 152 145 241 . Integrity Restored 10439 | . 303 231 . 15 988 378 907 681 . 975 838 723 . 493 486 899 606 377 567 318 654 . Core 7305 | . 303 231 . 15 744 378 723 179 . 780 568 216 . 159 486 355 299 330 567 318 654 . Parts 3134 | . . . . . 244 . 184 502 . 195 270 507 . 334 . 544 307 47 . . . . Protomatter Decayed 3249 | . . . . . 57 17 . . . 2 64 102 . 32 . . 195 326 . 39 2285 130 Game ------ Seed ProjectileOvertunedBoregun Manual? 0 Play Time 03:34:12 Cumulative 171.9 hours Start 2025.11.16 @ 01:12:43 End 2025.11.16 @ 05:03:23 Sessions 1 Manual Loads 0 Difficulty Rogue Special Mode Winter2019/RPGLIKE Game No. 75 Rogue 71 Adventurer 4 Explorer 0 Win Type - Total 4 Types 3/0/1/0/0/0/0/0/0/0 Lore% 69 Gallery% 51 Achievement% 39 Wizard Run 0 Options --------- Layout 0 ASCII 0 Keyboard 0 Movement Arrows Keybinds 0 Fullscreen 2 Font 32/SmallcapsGlow Map View 88x55 Zoom Use 0% Tactical HUD 1 Map Filters NONE Filters NONE Steam 1 RUN: d6b0d7c3-5bd0-46f2-84c5-c281ebab4d97